fUST/lending_fUST_20250308
["ID","MTS","AMOUNT","RATE_DAILY","PERIOD"]
[355659736,1741444243332,-673.11,0.00049315,120]
[355659737,1741444243343,-2843.11,0.00049315,120]
[355659738,1741444243352,-509.69120795,0.00049315,120]
[355659739,1741444243362,-154.02273,0.00049315,120]
[355659740,1741444243372,-512.01335314,0.00049315,120]
[355659741,1741444243385,-519.9983833,0.00049315,120]
[355659742,1741444243395,-564.39,0.00049315,120]
[355659743,1741444243404,-392.57812239,0.00049315,120]
[355659744,1741444243415,-521.51708385,0.00049315,120]
[355659745,1741444243424,-508.30711993,0.00049315,120]
[355659746,1741444243434,-554.46131479,0.00049315,120]
[355659747,1741444243443,-500.0,0.00049315,120]
[355659748,1741444243453,-621.2,0.00049315,120]
[355659749,1741444243463,-635.891438,0.00049315,120]
[355659750,1741444243472,-635.891438,0.00049315,120]
[355659751,1741444243482,-500.0,0.00049315,120]
[355659752,1741444243492,-500.0,0.00049315,120]
[355659753,1741444243501,-13532.64,0.00049315,120]
[355659754,1741444243511,-559.38050881,0.00049315,120]
[355659755,1741444243521,-500.0,0.00049315,120]
[355659756,1741444243530,-635.891438,0.00049315,120]
[355659757,1741444243540,-635.891438,0.00049315,120]
[355659758,1741444243551,-500.0,0.00049315,120]
[355659759,1741444243560,-5352.97,0.00049315,120]
[355659760,1741444243570,-275.15223931,0.00049315,120]
[355659761,1741444243580,-500.0,0.00049315,120]
[355659762,1741444243590,-541.59856954,0.00049315,120]
[355659763,1741444243599,-500.0,0.00049315,120]
[355659764,1741444243608,-300.89219109,0.00049315,120]
[355659765,1741444243618,-1000.32,0.00049315,120]
[355659766,1741444243627,-1000.32,0.00049315,120]
[355659767,1741444243636,-500.0,0.00049315,120]
[355659768,1741444243646,-1000.32,0.00049315,120]
[355659769,1741444243656,-500.0,0.00049315,120]
[355659770,1741444243665,-1000.32,0.00049315,120]
[355659771,1741444243674,-500.0,0.00049315,120]
[355659772,1741444243683,-1000.32,0.00049315,120]
[355659773,1741444243693,-2239.76,0.00049315,120]
[355659774,1741444243702,-1000.32,0.00049315,120]
[355659775,1741444243712,-500.0,0.00049315,120]
[355659776,1741444243722,-1000.32,0.00049315,120]
[355659777,1741444243731,-1000.32,0.00049315,120]
[355659778,1741444243740,-1000.32,0.00049315,120]
[355659779,1741444243750,-500.0,0.00049315,120]
[355659780,1741444243759,-1000.32,0.00049315,120]
[355659781,1741444243768,-500.0,0.00049315,120]
[355659782,1741444243779,-1000.32,0.00049315,120]
[355659783,1741444243788,-500.0,0.00049315,120]
[355659784,1741444243798,-1000.32,0.00049315,120]
[355659785,1741444243807,-281.77719784,0.00049315,120]
[355659786,1741444243816,-1000.32,0.00049315,120]
[355659787,1741444243826,-1000.32,0.00049315,120]
[355659788,1741444243836,-1000.32,0.00049315,120]
[355659789,1741444243845,-1000.32,0.00049315,120]
[355659790,1741444243855,-1000.32,0.00049315,120]
[355659791,1741444243866,-1000.32,0.00049315,120]
[355659792,1741444243876,-1000.32,0.00049315,120]
[355659793,1741444243885,-1000.32,0.00049315,120]
[355659794,1741444243895,-1000.32,0.00049315,120]
[355659795,1741444243905,-1000.32,0.00049315,120]
[355659796,1741444243915,-1000.32,0.00049315,120]
[355659797,1741444243924,-1000.39161197,0.00049315,120]
[355659798,1741444243935,-2132.79,0.00049315,120]
[355659799,1741444243944,-508.9447773,0.00049315,120]
[355659800,1741444243954,-1044.81,0.00049315,120]
[355659801,1741444243963,-522.33387125,0.00049315,120]
[355659802,1741444243973,-500.0,0.00049315,120]
[355659803,1741444243983,-427.88302104,0.00049315,120]
[355659804,1741444243992,-500.0,0.00049315,120]
[355659805,1741444244001,-1000.0,0.00049315,7]
[355659806,1741444244011,-360.51069541,0.00049315,120]
[355659807,1741444244020,-505.63254439,0.00049315,120]
[355659808,1741444244031,-513.85294894,0.00049315,120]
[355659809,1741444244041,-540.80990144,0.00049315,120]
[355659810,1741444244053,-151.0,0.00049315,30]
[355659811,1741444244062,-151.0,0.00049315,30]
[355659812,1741444244072,-508.16543719,0.00049315,120]
[355659813,1741444244081,-500.0,0.00049315,120]
[355659814,1741444244091,-151.0,0.00049315,120]
[355659815,1741444244100,-151.0,0.00049315,120]
[355659816,1741444244109,-504.18756698,0.00049315,120]
[355659817,1741444244119,-500.0,0.00049315,120]
[355659818,1741444244128,-512.94923013,0.00049315,120]
[355659819,1741444244138,-7276.2,0.00049315,7]
[355659820,1741444244148,-500.0,0.00049315,120]
[355659821,1741444244158,-500.0,0.00049315,120]
[355659822,1741444244167,-749.62,0.00049315,120]
[355659823,1741444244177,-166.02734645,0.00049315,120]
[355659824,1741444244188,-176.88367046,0.00049315,120]
[355659825,1741444244197,-500.0,0.00049315,120]
[355659826,1741444244207,-515.09519555,0.00049315,120]
[355659827,1741444244216,-500.0,0.00049315,120]
[355659828,1741444244225,-544.65757719,0.00049315,120]
[355659829,1741444244235,-511.56863627,0.00049315,120]
[355659830,1741444244244,-622.09568481,0.00049315,30]
[355659831,1741444244254,-526.91539129,0.00049315,120]
[355659832,1741444244264,-503.67997924,0.00049315,120]
[355659833,1741444244274,-503.66127661,0.00049315,120]
[355659834,1741444244284,-500.0,0.00049315,120]
[355659835,1741444244295,-151.0,0.00049315,120]
[355659838,1741444244389,-529.13705929,0.00049315,120]
[355659839,1741444244399,-151.0,0.00049315,120]
[355659840,1741444244409,-1551.426964,0.00049315,120]
[355659841,1741444244419,-1551.426964,0.00049315,120]
[355659842,1741444244429,-500.0,0.00049315,120]
[355659843,1741444244439,-151.0,0.00049315,120]
[355659844,1741444244448,-151.0,0.00049315,120]
[355659845,1741444244460,-163.72414308,0.00049315,120]
[355659846,1741444244469,-500.0,0.00049315,120]
[355659847,1741444244479,-500.0,0.00049315,120]
[355659848,1741444244488,-158.581522,0.00049315,120]
[355659849,1741444244498,-500.0,0.00049315,120]
[355659850,1741444244508,-1551.426964,0.00049315,120]
[355659851,1741444244517,-1551.426964,0.00049315,120]
[355659852,1741444244527,-4020.97,0.00049315,120]
[355659853,1741444244537,-500.0,0.00049315,120]
[355659854,1741444244548,-500.0,0.00049315,120]
[355659855,1741444244557,-534.26905312,0.00049315,120]
[355659856,1741444244567,-529.13909038,0.00049315,120]
[355659857,1741444244577,-500.0,0.00049315,120]
[355659858,1741444244587,-508.94887327,0.00049315,120]
[355659859,1741444244596,-500.0,0.00049315,120]
[355659860,1741444244606,-521.16974938,0.00049315,120]
[355659861,1741444244616,-500.97679274,0.00049315,2]
[355659862,1741444244626,-500.0,0.00049315,120]
[355659863,1741444244635,-517.41852367,0.00049315,120]
[355659864,1741444244645,-800.13,0.00049315,120]
[355659865,1741444244654,-9999.0,0.00049315,2]
[355659866,1741444244663,-4197.06,0.00049315,2]
[355659868,1741444244673,-500.0,0.00049315,2]
[355659870,1741444244683,-789.14,0.00049315,120]
[355659872,1741444244693,-1274.84,0.00049315,120]
[355659874,1741444244702,-1274.84,0.00049315,120]
[355659875,1741444244712,-1274.84,0.00049315,120]
[355659876,1741444244721,-1274.84,0.00049315,120]
[355659877,1741444244731,-1274.84,0.00049315,120]
[355659878,1741444244740,-1274.84,0.00049315,120]
[355659879,1741444244749,-1274.84,0.00049315,120]
[355659880,1741444244759,-500.0,0.00049315,120]
[355659881,1741444244768,-1274.84,0.00049315,120]
[355659882,1741444244777,-1274.84,0.00049315,120]
[355659883,1741444244786,-1274.84,0.00049315,120]
[355659884,1741444244797,-1274.84,0.00049315,120]
[355659885,1741444244807,-1274.84,0.00049315,120]
[355659886,1741444244816,-655.73,0.00049315,120]
[355659887,1741444244825,-1274.84,0.00049315,120]
[355659888,1741444244835,-1274.84,0.00049315,120]
[355659889,1741444244844,-500.0,0.00049315,120]
[355659890,1741444244853,-1274.84,0.00049315,120]
[355659891,1741444244863,-1274.84,0.00049315,120]
[355659892,1741444244873,-1274.84,0.00049315,120]
[355659893,1741444244882,-1274.84,0.00049315,120]
[355659894,1741444244891,-1274.84,0.00049315,120]
[355659895,1741444244901,-1274.84,0.00049315,120]
[355659896,1741444244910,-1274.84,0.00049315,120]
[355659897,1741444244919,-1274.84,0.00049315,120]
[355659898,1741444244929,-1274.84,0.00049315,120]
[355659899,1741444244938,-1275.04806614,0.00049315,120]
[355659900,1741444244947,-500.0,0.00049315,120]
[355659901,1741444244957,-200.11684612,0.00049315,10]
[355659902,1741444244966,-1361.502269,0.00049315,7]
[355659903,1741444244976,-1361.502269,0.00049315,7]
[355659904,1741444244986,-500.0,0.00049315,120]
[355659905,1741444244995,-500.0,0.00049315,120]
[355659906,1741444245004,-500.0,0.00049315,120]
[355659907,1741444245013,-500.0,0.00049315,120]
[355659908,1741444245023,-500.0,0.00049315,120]
[355659909,1741444245032,-500.0,0.00049315,120]
[355659910,1741444245043,-500.0,0.00049315,120]
[355659911,1741444245054,-500.0,0.00049315,120]
[355659912,1741444245064,-500.0,0.00049315,120]
[355659913,1741444245073,-500.0,0.00049315,120]
[355659914,1741444245083,-500.0,0.00049315,120]
[355659915,1741444245094,-500.0,0.00049315,120]
[355659916,1741444245103,-500.0,0.00049315,120]
[355659917,1741444245112,-500.0,0.00049315,120]
[355659918,1741444245122,-500.0,0.00049315,120]
[355659919,1741444245132,-500.0,0.00049315,120]
[355659920,1741444245141,-500.0,0.00049315,120]
[355659921,1741444245151,-500.0,0.00049315,120]
[355659922,1741444245160,-500.0,0.00049315,120]
[355659923,1741444245169,-500.0,0.00049315,120]
[355659924,1741444245178,-500.0,0.00049315,120]
[355659925,1741444245188,-500.0,0.00049315,120]
[355659926,1741444245198,-500.0,0.00049315,120]
[355659927,1741444245207,-500.0,0.00049315,120]
[355659928,1741444245217,-500.0,0.00049315,120]
[355659929,1741444245226,-500.0,0.00049315,120]
[355659930,1741444245235,-500.0,0.00049315,120]
[355659931,1741444245245,-500.0,0.00049315,120]
[355659932,1741444245255,-500.0,0.00049315,120]
[355659933,1741444245264,-500.0,0.00049315,120]
[355659934,1741444245274,-500.0,0.00049315,120]
[355659935,1741444245283,-500.0,0.00049315,120]
[355659936,1741444245293,-500.0,0.00049315,120]
[355659937,1741444245304,-500.0,0.00049315,120]
[355659938,1741444245314,-500.0,0.00049315,120]
[355659939,1741444245323,-500.0,0.00049315,120]
[355659940,1741444245333,-500.0,0.00049315,120]
[355659941,1741444245342,-500.0,0.00049315,120]
[355659942,1741444245351,-500.0,0.00049315,120]
[355659943,1741444245361,-500.0,0.00049315,120]
[355659944,1741444245370,-500.0,0.00049315,120]
[355659945,1741444245380,-500.0,0.00049315,120]
[355659946,1741444245394,-500.0,0.00049315,120]
[355659947,1741444245403,-500.0,0.00049315,120]
[355659948,1741444245412,-500.0,0.00049315,120]
[355659949,1741444245423,-500.0,0.00049315,120]
[355659950,1741444245432,-500.0,0.00049315,120]
[355659951,1741444245442,-500.0,0.00049315,120]
[355659952,1741444245451,-500.0,0.00049315,120]
[355659953,1741444245460,-500.0,0.00049315,120]
[355659954,1741444245471,-500.0,0.00049315,120]
[355659955,1741444245480,-500.0,0.00049315,120]
[355659956,1741444245494,-500.0,0.00049315,120]
[355659957,1741444245504,-500.0,0.00049315,120]
[355659958,1741444245513,-500.0,0.00049315,120]
[355659959,1741444245523,-500.0,0.00049315,120]
[355659960,1741444245532,-500.0,0.00049315,120]
[355659961,1741444245542,-500.0,0.00049315,120]
[355659962,1741444245553,-500.0,0.00049315,120]
[355659963,1741444245562,-500.0,0.00049315,120]
[355659964,1741444245572,-500.0,0.00049315,120]
[355659965,1741444245581,-500.0,0.00049315,120]
[355659966,1741444245591,-500.0,0.00049315,120]
[355659967,1741444245600,-413.51505713,0.00049315,120]
[355659968,1741444245610,-500.0,0.00049319,94]
[355659969,1741444245619,-1000.0,0.0004932,21]
[355659970,1741444245628,-800.0,0.00049336,30]
[355659971,1741444245637,-1000.0,0.0004934,21]
[355659972,1741444245647,-2501.6172422,0.0004935,2]
[355659973,1741444245656,-151.0,0.0004935,120]
[355659974,1741444245665,-200.348043,0.0004935,120]
[355659975,1741444245674,-1000.0,0.0004936,21]
[355659976,1741444245683,-2729.2460839,0.0004937,108]
[355659977,1741444245692,-296.388449,0.0004937,120]
[355659978,1741444245701,-1551.426964,0.0004937,120]
[355659979,1741444245711,-1551.426964,0.0004937,120]
[355659980,1741444245720,-1000.0,0.00049372,120]
[355659981,1741444245729,-500.0,0.00049373,10]
[355659982,1741444245738,-500.0,0.00049373,10]
[355659983,1741444245748,-500.0,0.00049373,10]
[355659984,1741444245757,-150.11434886,0.00049373,10]
[355659985,1741444245766,-635.891438,0.00049373,120]
[355659986,1741444245775,-635.891438,0.00049373,120]
[355659987,1741444245785,-151.0,0.0004938,120]
[355659988,1741444245794,-230.365613,0.0004938,120]
[355659989,1741444245804,-151.0,0.0004938,110]
[355659990,1741444245813,-577.52857,0.0004938,120]
[355659991,1741444245823,-1361.502269,0.0004938,7]
[355659992,1741444245832,-1361.502269,0.0004938,7]
[355659993,1741444245841,-151.0,0.0004938,120]
[355659994,1741444245851,-1000.0,0.0004938,21]
[355659995,1741444245861,-151.0,0.0004938,120]
[355659996,1741444245871,-151.0,0.0004938,120]
[355659998,1741444245881,-151.0,0.0004938,120]
[355659999,1741444245890,-800.0,0.00049384,30]
[355660000,1741444245901,-800.0,0.00049387,30]
[355660001,1741444245914,-800.0,0.00049389,30]
[355660002,1741444245926,-800.0,0.00049398,30]
[355660003,1741444245935,-10396.68750568,0.000494,120]
[355660006,1741444245944,-10000.0,0.000494,60]
[355660009,1741444245954,-150.52,0.000494,120]
[355660012,1741444245963,-151.0,0.000494,120]
[355660014,1741444245973,-151.0,0.000494,120]
[355660016,1741444245982,-157.845587,0.000494,120]
[355660018,1741444245992,-151.0,0.000494,120]
[355660020,1741444246002,-184.451089,0.000494,120]
[355660022,1741444246012,-1000.0,0.000494,21]
[355660024,1741444246021,-165.783066,0.000494,120]
[355660026,1741444246030,-500.0,0.000494,115]
[355660028,1741444246040,-500.0,0.00049419,90]
[355660030,1741444246050,-1000.0,0.0004942,21]
[355660032,1741444246059,-1000.0,0.00049424,120]
[355660034,1741444246069,-1000.0,0.00049424,120]
[355660036,1741444246079,-1000.0,0.00049424,120]
[355660038,1741444246088,-1000.0,0.00049424,120]
[355660040,1741444246098,-1000.0,0.00049424,120]
[355660042,1741444246107,-1000.0,0.00049424,120]
[355660044,1741444246116,-1000.0,0.00049424,120]
[355660046,1741444246125,-1000.0,0.00049424,120]
[355660048,1741444246135,-1000.0,0.00049424,120]
[355660050,1741444246144,-1000.0,0.00049424,120]
[355660052,1741444246154,-1000.0,0.00049424,120]
[355660053,1741444246163,-1000.0,0.00049424,120]
[355660054,1741444246173,-538.58415534,0.00049424,120]
[355660055,1741444246182,-2000.0,0.0004944,52]
[355660056,1741444246267,-1000.0,0.0004944,21]
[355660057,1741444246277,-1000.0,0.0004946,21]
[355660058,1741444246286,-1000.0,0.0004948,21]
[355660059,1741444246296,-1072.815153,0.0004948,21]
[355660060,1741444246306,-216.69,0.00049499,30]
[355660061,1741444246315,-2000.0,0.000495,51]
[355660062,1741444246324,-150.0,0.000495,120]
[355660063,1741444246333,-1565.42,0.000495,30]
[355660064,1741444246342,-1074.66,0.000495,30]
[355660065,1741444246352,-255.818195,0.000495,120]
[355660066,1741444246361,-151.0,0.000495,120]
[355660067,1741444246370,-151.0,0.000495,120]
[355660068,1741444246383,-154.748819,0.000495,120]
[355660069,1741444246393,-151.0,0.000495,120]
[355660070,1741444246402,-1000.0,0.000495,21]
[355660071,1741444246412,-1000.0,0.000495,21]
[355660072,1741444246423,-301.574118,0.000495,90]
[355660073,1741444246432,-50000.0,0.000495,30]
[355660074,1741444246442,-151.0,0.000495,120]
[355660075,1741444246451,-50000.0,0.000495,30]
[355660076,1741444246462,-30132.05,0.000495,30]
[355660077,1741444246472,-151.0,0.000495,30]
[355660078,1741444246482,-151.0,0.000495,120]
[355660079,1741444246492,-151.0,0.000495,120]
[355660080,1741444246501,-500.0,0.00049519,99]
[355660081,1741444246511,-151.0,0.00049573,120]
[355660082,1741444246520,-151.0,0.00049578,120]
[355660083,1741444246530,-151.0,0.00049578,120]
[355660084,1741444246539,-151.0,0.00049578,120]
[355660085,1741444246551,-151.0,0.00049578,120]
[355660086,1741444246562,-151.0,0.00049578,120]
[355660087,1741444246571,-151.0,0.00049578,120]
[355660088,1741444246581,-151.0,0.00049578,120]
[355660089,1741444246590,-151.0,0.00049578,120]
[355660090,1741444246600,-151.0,0.00049578,120]
[355660091,1741444246609,-151.0,0.00049578,120]
[355660092,1741444246618,-151.0,0.00049578,120]
[355660093,1741444246627,-500.0,0.00049581,7]
[355660094,1741444246636,-150.43,0.00049581,120]
[355660095,1741444246646,-150.43,0.00049581,120]
[355660096,1741444246655,-500.0,0.00049581,120]
[355660097,1741444246665,-178.108394,0.00049582,120]
[355660098,1741444246675,-151.0,0.00049582,120]
[355660099,1741444246685,-151.0,0.00049582,120]
[355660101,1741444246694,-151.0,0.00049582,120]
[355660103,1741444246703,-151.0,0.00049582,120]
[355660105,1741444246712,-151.0,0.00049582,120]
[355660108,1741444246722,-268.344844,0.00049582,120]
[355660110,1741444246732,-151.0,0.00049582,120]
[355660111,1741444246741,-151.0,0.00049582,120]
[355660113,1741444246751,-151.0,0.00049582,120]
[355660114,1741444246761,-151.0,0.00049582,120]
[355660115,1741444246770,-151.0,0.00049582,120]
[355660116,1741444246780,-151.0,0.00049582,120]
[355660117,1741444246789,-151.0,0.00049582,120]
[355660118,1741444246799,-154.388848,0.00049582,120]
[355660119,1741444246809,-224.633455,0.00049583,110]
[355660120,1741444246818,-577.52857,0.00049583,120]
[355660121,1741444246827,-577.52857,0.00049583,120]
[355660122,1741444246837,-577.52857,0.00049583,120]
[355660123,1741444246847,-577.52857,0.00049583,120]
[355660124,1741444246857,-577.52857,0.00049583,120]
[355660125,1741444246867,-577.52857,0.00049583,120]
[355660126,1741444246876,-577.52857,0.00049583,120]
[355660127,1741444246886,-577.52857,0.00049583,120]
[355660128,1741444246896,-577.52857,0.00049583,120]
[355660129,1741444246906,-1361.502269,0.00049583,7]
[355660130,1741444246915,-1361.502269,0.00049583,7]
[355660131,1741444246924,-1361.502269,0.00049583,7]
[355660132,1741444246934,-1361.502269,0.00049583,7]
[355660133,1741444246944,-1361.502269,0.00049583,7]
[355660134,1741444246953,-1361.502269,0.00049583,7]
[355660135,1741444246963,-1361.502269,0.00049583,7]
[355660136,1741444246972,-1361.502269,0.00049583,7]
[355660137,1741444246981,-1361.502269,0.00049583,7]
[355660138,1741444246990,-1361.502269,0.00049583,7]
[355660139,1741444247000,-1551.426964,0.00049583,120]
[355660140,1741444247010,-1551.426964,0.00049583,120]
[355660141,1741444247019,-151.0,0.00049588,120]
[355660142,1741444247029,-151.0,0.00049588,120]
[355660143,1741444247039,-266.275712,0.00049588,120]
[355660144,1741444247049,-151.0,0.00049588,120]
[355660145,1741444247058,-215.075188,0.00049588,120]
[355660146,1741444247068,-151.0,0.00049588,120]
[355660147,1741444247078,-269.24891,0.00049588,120]
[355660148,1741444247087,-635.891438,0.00049591,120]
[355660149,1741444247096,-635.891438,0.00049591,120]
[355660150,1741444247106,-635.891438,0.00049591,120]
[355660151,1741444247116,-635.891438,0.00049591,120]
[355660152,1741444247126,-635.891438,0.00049591,120]
[355660153,1741444247136,-635.891438,0.00049591,120]
[355660154,1741444247145,-635.891438,0.00049591,120]
[355660155,1741444247155,-635.891438,0.00049591,120]
[355660156,1741444247165,-635.891438,0.00049591,120]
[355660157,1741444247175,-635.891438,0.00049591,120]
[355660158,1741444247184,-151.0,0.00049591,30]
[355660159,1741444247194,-151.0,0.00049591,30]
[355660160,1741444247204,-151.0,0.00049591,30]
[355660161,1741444247213,-151.0,0.00049591,30]
[355660162,1741444247223,-151.0,0.00049591,30]
[355660163,1741444247232,-151.0,0.00049591,120]
[355660164,1741444247242,-151.0,0.00049591,120]
[355660165,1741444247251,-151.0,0.00049591,120]
[355660166,1741444247261,-151.0,0.00049591,120]
[355660167,1741444247270,-151.0,0.00049591,120]
[355660168,1741444247280,-1551.426964,0.00049591,120]
[355660169,1741444247290,-258.388722,0.00049591,120]
[355660170,1741444247300,-1551.426964,0.00049591,120]
[355660171,1741444247310,-1551.426964,0.00049591,120]
[355660172,1741444247319,-1551.426964,0.00049591,120]
[355660173,1741444247329,-1551.426964,0.00049591,120]
[355660174,1741444247338,-1551.426964,0.00049591,120]
[355660175,1741444247347,-1551.426964,0.00049591,120]
[355660176,1741444247357,-1551.426964,0.00049591,120]
[355660177,1741444247367,-1551.426964,0.00049591,120]
[355660178,1741444247377,-1551.426954,0.00049591,120]
[355660179,1741444247391,-170616.2395588,0.00049592,7]
[355660180,1741444248026,-500.0,0.00048109,2]
[355660181,1741444248036,-30.7,0.00048173,10]
[355660182,1741444248166,-386.21,0.000481,30]
[355660183,1741444248176,-469.3,0.00048173,10]
[355660184,1741444248187,-500.0,0.00048173,10]
[355660185,1741444248196,-501.67916063,0.00048173,10]
[355660186,1741444248205,-275.351796,0.000485,120]
[355660187,1741444248214,-275.351796,0.000485,120]
[355660188,1741444248224,-150.0,0.00048973,3]
[355660189,1741444248233,-549.08,0.00049305,10]
[355660190,1741444248242,-425.26701115,0.00049315,2]
[355660191,1741444248251,-275.351796,0.00049315,120]
[355660192,1741444248261,-275.351796,0.00049315,120]
[355660193,1741444248270,-275.351796,0.00049315,120]
[355660194,1741444248280,-275.351796,0.0004937,120]
[355660195,1741444248289,-150.0,0.00049373,10]
[355660196,1741444248300,-250.0,0.00049521,3]
[355660197,1741444248309,-275.351796,0.00049583,120]
[355660198,1741444248318,-275.351796,0.00049588,120]
[355660199,1741444248328,-275.351796,0.00049588,120]
[355660200,1741444248337,-275.351796,0.00049588,120]
[355660201,1741444248346,-275.351796,0.00049588,120]
[355660202,1741444248355,-275.351796,0.00049588,120]
[355660203,1741444248365,-123207.38430684,0.00049592,7]
[355660204,1741444248375,-1610.05206388,0.00049592,120]
[355660205,1741444248386,-636.2224244,0.00049592,32]
[355660206,1741444248599,-234.89890483,0.00049592,32]
[355660207,1741444248613,-1648.88977107,0.00049592,32]
[355660208,1741444248644,-947.95885191,0.0004801,28]
[355660209,1741444248654,-275.351796,0.00049315,120]
[355660210,1741444248664,-275.351796,0.0004937,120]
[355660211,1741444248674,-275.351796,0.00049583,120]
[355660212,1741444248684,-3.13330739,0.00049592,32]
[355660213,1741444248694,-235.18130188,0.00049592,10]
[355660214,1741444248704,-459.38381817,0.00049592,120]
[355660215,1741444350013,171.0,0.00044,120]
[355660217,1741444900429,249.8,0.0002,120]
[355660219,1741445147113,-150.0,0.000253,7]
[355660220,1741445147135,-416.66666667,0.00028,3]
[355660221,1741445147158,-201.98207433,0.00032,10]
[355660222,1741445147181,-162.840927,0.0003589,2]
[355660223,1741445147203,-1398.96747275,0.000379,8]
[355660224,1741445147225,-400.0,0.00037989,2]
[355660225,1741445147249,-409.93395087,0.0003799,2]
[355660226,1741445199084,-206.90415627,0.0003799,2]
[355660227,1741445233087,-1356.88673244,0.000379,8]
[355660228,1741445233110,-150.0,0.00037989,2]
[355660229,1741445233133,-3094.72384297,0.0003799,2]
[355660230,1741445235079,-656.85095339,0.0003799,2]
[355660231,1741445235101,-180.02199283,0.00038827,113]
[355660232,1741445235123,-332.60288583,0.00038927,2]
[355660233,1741445238073,-821.12765039,0.00038927,2]
[355660234,1741445239112,-397.07444828,0.00038927,2]
[355660235,1741445239134,-225.90214,0.00039317,2]
[355660236,1741445239156,-3678.0,0.00042,120]
[355660237,1741445239178,-162.840927,0.0004263,2]
[355660238,1741445239200,-200.0,0.000432,120]
[355660239,1741445239221,-3678.0,0.00044,120]
[355660240,1741445239244,-996.85718556,0.00046,120]
[355660241,1741445243087,-744.52279334,0.00046,120]
[355660242,1741445251084,-1936.6200211,0.00046,120]
[355660243,1741445251107,-182.0,0.000467,120]
[355660244,1741445251129,-150.0,0.000474,2]
[355660245,1741445251155,-153.23,0.000476,42]
[355660246,1741445251182,-153.23,0.000476,42]
[355660247,1741445251210,-153.23,0.000476,42]
[355660248,1741445251236,-153.23,0.000476,42]
[355660249,1741445251264,-153.23,0.000476,42]
[355660250,1741445251285,-1008.08495899,0.00047971,28]
[355660251,1741445251307,-3678.0,0.00048,120]
[355660252,1741445251328,-416.66666667,0.00048061,2]
[355660253,1741445251350,-15555.67399697,0.00048061,2]
[355660254,1741445251375,-500.0,0.0004807,2]
[355660255,1741445251401,-500.0,0.0004807,2]
[355660256,1741445251425,-500.0,0.0004807,2]
[355660257,1741445251450,-500.0,0.0004807,2]
[355660258,1741445251475,-500.0,0.0004807,2]
[355660259,1741445251502,-500.0,0.0004807,2]
[355660260,1741445251527,-500.0,0.0004807,2]
[355660261,1741445251552,-500.0,0.0004807,2]
[355660262,1741445251575,-500.0,0.0004807,2]
[355660263,1741445251601,-500.0,0.0004807,2]
[355660264,1741445251625,-500.0,0.0004807,2]
[355660265,1741445251649,-500.0,0.0004807,2]
[355660266,1741445251674,-500.0,0.0004807,2]
[355660267,1741445251699,-500.0,0.0004807,2]
[355660268,1741445251730,-500.0,0.0004807,2]
[355660269,1741445251756,-500.0,0.0004807,2]
[355660270,1741445251782,-500.0,0.0004807,2]
[355660271,1741445251808,-500.0,0.0004807,2]
[355660272,1741445251837,-500.0,0.0004807,2]
[355660273,1741445251862,-457.10697531,0.0004807,2]
[355660274,1741445251887,-500.0,0.0004807,2]
[355660275,1741445251909,-207.24,0.00048117,30]
[355660276,1741445251929,-200.0,0.00048129,2]
[355660277,1741445251950,-200.0,0.00048129,2]